Cogmind - Beta 13 X1 @@@ ROGUE MODE // 2023.07.12 @ 20:19:00 Player: WayneKnight Result: Self-destructed Performance ------------- Evolutions (0) 0 Regions Visited (4) 800 Robots Destroyed (21) 105 Value Destroyed (317) 317 Prototype IDs (3) 60 Alien Tech Used (0) 0 Bonus (170) 170 TOTAL SCORE: 1452 Bonus ------- Follower Combat Kills 170 Cogmind --------- Core Integrity 52/250 Matter 207/300 Energy 100/100 System Corruption 4% Temperature Cool (0) Movement Treading (240) Ox1 Location -9/Mines Parts ------- > --- POWER (1) -------- (None) > --- PROPULSION (2) --- Light Treads > --- UTILITY (2) ------ Large Storage Unit > --- WEAPON (2) ------- Advanced Assault Cannon > --- INVENTORY (15) --- Light Ion Engine Light Treads Light Treads Light Treads Wheel Structural Scanner Hacking Suite Makeshift Hacking Suite Medium Laser Light Assault Rifle Makeshift Shrapnel Gun Rocket Launcher Makeshift Sword Makeshift Sword Peak State ------------ > --- POWER ------------ Ion Engine > --- PROPULSION ------- Light Treads Wheel > --- UTILITY ---------- Large Storage Unit Light Armor Plating > --- WEAPON ----------- Makeshift Shrapnel Gun Makeshift Sword > --- INVENTORY -------- Light Ion Engine Light Treads Light Treads Light Treads Light Treads Structural Scanner Signal Interpreter Core Shielding Power Shielding Hacking Suite Makeshift Hacking Suite Medium Laser Assault Rifle Light Assault Rifle Makeshift Sword [Rating: 15] Favorites ----------- Power Ion Engine Engine Ion Engine Propulsion Light Treads Treads Light Treads Leg Aluminum Leg Wheel Wheel Utility Light Armor Plating Device Tractor Beam Storage Large Storage Unit Processor Targeting Computer Protection Light Armor Plating Weapon Assault Rifle Energy Gun Medium Laser Ballistic Gun Assault Rifle Ballistic Cannon Advanced Assault Cannon Launcher Rocket Launcher Impact Weapon Hammer Slashing Weapon Makeshift Sword Build | -11 -10 -10 -10 -9 ------- Run | Jun Mat Min Exi Min Slots Evolved . | . . . . . Power . | . . . . . Propulsion . | . . . . . Utility . | . . . . . Weapon . | . . . . . Parts Attached 37 | 3 20 4 2 8 Power 2 | . 2 . . . Engine 2 | . 2 . . . Core . | . . . . . Reactor . | . . . . . Propulsion 19 | 2 10 4 . 3 Treads 11 | 1 6 2 . 2 Leg . | . . . . . Wheel 8 | 1 4 2 . 1 Hover . | . . . . . Flight . | . . . . . Utility 6 | 1 4 . . 1 Device 1 | 1 . . . . Storage 1 | . 1 . . . Processor 1 | . 1 . . . Hackware . | . . . . . Protection 3 | . 2 . . 1 Artifact . | . . . . . Weapon 10 | . 4 . 2 4 Energy Gun 1 | . 1 . . . Energy Cannon . | . . . . . Ballistic Gun 5 | . 2 . 1 2 Ballistic Cannon 1 | . . . . 1 Launcher 1 | . . . . 1 Special Weapon . | . . . . . Impact Weapon 1 | . 1 . . . Slashing Weapon 1 | . . . 1 . Piercing Weapon . | . . . . . Special Melee Weapon . | . . . . . Unidentified Prototypes . | . . . . . Corrupted Parts 1 | . . . . 1 System Corruption 4 | . . . . 4 Parts Lost 3 | . . . . 3 Power . | . . . . . Propulsion 1 | . . . . 1 Utility 1 | . . . . 1 Weapon 1 | . . . . 1 Highest Loss Streak 3 | . . . . 3 To Critical Strikes . | . . . . . Average Slot Usage (%) 99 | . 99 100 100 98 Engine 13 | . 13 14 14 13 Treads 15 | . 18 14 14 14 Wheel 12 | . 9 13 14 13 Storage 14 | . 14 14 14 14 Processor 2 | . 5 . . . Protection 11 | . 8 14 14 13 Energy Gun 7 | . 6 14 7 . Ballistic Gun 17 | . 21 14 14 15 Slashing Weapon 2 | . . . 6 11 Naked Turns . | . . . . . Heaviest Build 32 | 11 32 32 32 32 Greatest Support 40 | 10 40 20 10 10 Greatest Overweight (x) 3 | 1 3 3 3 3 Average Overweight (x) 2 | . 2 2 3 3 Largest Inventory Capacity 15 | 8 15 15 15 15 Average Capacity 13 | 8 12 15 15 15 Most Carried 15 | 6 15 15 15 15 Average Carried 13 | 5 11 14 14 14 Final Capacity 15 | 8 15 15 15 15 Final Carried 15 | 5 15 15 15 14 Class Distribution -------------------- 79% | Mutant 20% | Commander-Mutant Dominant Class ---------------- Mutant | -10/Materials Mutant | -10/Mines Commander-Mutant | -10/Exiles Mutant | -9/Mines Resources | -11 -10 -10 -10 -9 ----------- Run | Jun Mat Min Exi Min Matter Collected 690 | 236 143 142 27 142 Remotely 34 | 34 . . . . Salvage Created 780 | 72 209 125 137 237 Parts 43 | 3 22 11 3 4 Haulers Intercepted . | . . . . . Recyclers Shooed 1 | 1 . . . . Parts Field Recycled . | . . . . . Retrieved Matter . | . . . . . Parts Self-Destructed . | . . . . . Prevented . | . . . . . Kills | -11 -10 -10 -10 -9 ------- Run | Jun Mat Min Exi Min Combat Hostiles Destroyed 17 | . 8 5 . 4 Guns 15 | . 8 5 . 2 AOE 2 | . . . . 2 Classes Destroyed 6 | 1 3 1 . 1 Recycler 3 | 1 . . . 2 Operator 1 | . 1 . . . Watcher 3 | . 3 . . . Swarmer 11 | . 8 3 . . Grunt 3 | . . 2 . 1 Assembled 3 | . . . . 3 Best Kill Streak 3 | 1 2 3 . 3 Combat Bots Only 3 | . 2 3 . 3 Max Kills in Single Turn 2 | 1 1 1 . 2 Gunslinging . | . . . . . Exploded 2 | . . . . 2 Melee . | . . . . . Uniques/NPCs Destroyed . | . . . . . Combat | -11 -10 -10 -10 -9 -------- Run | Jun Mat Min Exi Min Damage Taken 1149 | . 145 91 . 913 Core 198 | . 8 36 . 154 Absorbed by Shields . | . . . . . Redirected to Shielding 4 | . . . . 4 Core Remaining (%) 100 | 100 . . . . Volleys Fired 50 | 3 23 7 7 10 Largest 2 | 2 2 2 2 2 Hottest 74 | 40 70 70 74 68 Shots Fired 100 | 6 46 14 14 20 Gun 95 | 6 46 14 14 15 Cannon 4 | . . . . 4 Launcher 1 | . . . . 1 Special . | . . . . . Kinetic 79 | 6 40 7 7 19 Thermal 20 | . 6 7 7 . Explosive 1 | . . . . 1 Electromagnetic . | . . . . . Robot Hit Streak 18 | 3 5 10 18 5 Robot Miss Streak 4 | 1 3 1 1 4 Penetration Max . | . . . . . Secondary Targets . | . . . . . Shots Hit Robots 77 | 4 24 11 20 18 Core Hits 42 | 2 17 7 5 11 Critical Kills . | . . . . . Critical Parts Destroyed 1 | . 1 . . . Critical Strikes 2 | . 1 1 . . Burn 1 | . . 1 . . Destroy 1 | . 1 . . . Melee Attacks 16 | . 3 . 11 2 Impact 3 | . 3 . . . Slashing 13 | . . . 11 2 Piercing . | . . . . . Sneak Attacks 2 | . . . . 2 Combat Hostiles . | . . . . . Follow-up Attacks . | . . . . . Damage Inflicted 1979 | 30 287 155 886 621 Guns 987 | 30 287 146 311 213 Cannons 84 | . . . . 84 Explosions 177 | . . . . 177 Melee 722 | . . . 575 147 Ramming 9 | . . 9 . . Kinetic 828 | 30 223 59 219 297 Thermal 243 | . 64 87 92 . Explosive 177 | . . . . 177 Electromagnetic . | . . . . . Impact . | . . . . . Slashing 722 | . . . 575 147 Piercing . | . . . . . Highest Corruption 4 | . . . . 4 Average Corruption 4 | . . . . 4 Corruption Purged . | . . . . . Corruption Blocked . | . . . . . Overload Shots . | . . . . . Overflow Damage 224 | . . . 175 49 Projectiles . | . . . . . Explosions . | . . . . . Melee 224 | . . . 175 49 Knockbacks . | . . . . . Impact . | . . . . . Kinetic . | . . . . . Secondary . | . . . . . Self-Inflicted Damage 49 | . . . . 49 Shots 1 | . . . . 1 Rammed 1 | . . 1 . . Targets Rammed 1 | . . 1 . . Kicked . | . . . . . Crushed . | . . . . . Highest Temperature 126 | . 36 72 126 . Average Temperature 34 | . 11 36 56 . Received Heat Transfer 24 | . . 18 . 6 Siege Activations . | . . . . . Robots Corrupted . | . . . . . Combat Hostiles . | . . . . . Parts Fried . | . . . . . Impact Corruptions . | . . . . . Robots Melted . | . . . . . Combat Hostiles . | . . . . . Parts Melted . | . . . . . Heat Transferred 740 | . 185 333 222 . Parts Sabotaged . | . . . . . Parts Stolen . | . . . . . Parts Stripped . | . . . . . Power Chain Reactions . | . . . . . Missiles Intercepted . | . . . . . Alert | -11 -10 -10 -10 -9 ------- Run | Jun Mat Min Exi Min Peak Influence 164 | 5 164 97 . 112 Initial 21 | . 3 21 . . Average 34 | 2 36 27 . 39 Maximum Alert Level . | . . . . . Low Security (%) 100 | 100 100 100 . 100 Level 1 . | . . . . . Level 2 . | . . . . . Level 3 . | . . . . . Level 4 . | . . . . . Level 5 . | . . . . . High Security . | . . . . . Max Security . | . . . . . Squads Dispatched 1 | . . . . 1 Investigation . | . . . . . Extermination . | . . . . . Reinforcement . | . . . . . Assault 1 | . . . . 1 Garrison . | . . . . . Intercept . | . . . . . Searches Triggered . | . . . . . Construction Impeded . | . . . . . Haulers Reinforced . | . . . . . Active Scanning Responses . | . . . . . Cargo Convoy Interrupts . | . . . . . Stealth | -11 -10 -10 -10 -9 --------- Run | Jun Mat Min Exi Min Distress Signals 1 | . 1 . . . Communications Jammed . | . . . . . Distress Signals . | . . . . . Times Spotted 47 | . 19 5 . 23 Peak Tracking Total 18 | . 4 3 . 18 Tactical Retreats 2 | . 2 . . . Traps | -11 -10 -10 -10 -9 ------- Run | Jun Mat Min Exi Min Traps Triggered 2 | . 2 . . . Indirectly . | . . . . . Trap Hack Attempts . | . . . . . Triggered . | . . . . . Disarmed . | . . . . . Reprogrammed . | . . . . . Reused . | . . . . . Traps Extracted . | . . . . . Installed . | . . . . . Triggered . | . . . . . Machines | -11 -10 -10 -10 -9 ---------- Run | Jun Mat Min Exi Min Machines Disabled 1 | . 1 . . . Max in Single Turn 1 | . 1 . . . Machines Repaired . | . . . . . Machines Sabotaged . | . . . . . Overloaded Fab Kills . | . . . . . Hacking | -11 -10 -10 -10 -9 --------- Run | Jun Mat Min Exi Min Machines Accessed 11 | . 8 1 1 1 Terminals 9 | . 8 1 . . Fabricators . | . . . . . Repair Stations . | . . . . . Recycling Units . | . . . . . Scanalyzers . | . . . . . Garrison Access . | . . . . . Total Hacks 29 | . 25 2 1 1 Successful 15 | . 12 1 1 1 Failed 13 | . 12 1 . . Catastrophic 2 | . 2 . . . Database Lockouts 1 | . 1 . . . Manual 16 | . 12 2 2 . Terminals 27 | . 25 2 . . Fabricators . | . . . . . Repair Stations . | . . . . . Recycling Units . | . . . . . Scanalyzers . | . . . . . Garrison Access . | . . . . . Terminal Hacks 11 | . 8 1 1 1 Record 1 | . . . 1 . Robot Analysis 2 | . 1 1 . . Prototype ID Bank 4 | . 4 . . . Open Door 1 | . . . . 1 Locate Traps 1 | . 1 . . . Hauler Manifests 1 | . 1 . . . Zone Layout 1 | . 1 . . . Fabricator Hacks . | . . . . . Repair Station Hacks . | . . . . . Recycling Unit Hacks . | . . . . . Scanalyzer . | . . . . . Garrison Access Hacks . | . . . . . Unauthorized Hacks 4 | . 4 . . . Terminals 4 | . 4 . . . Track 2 | . 2 . . . Botnet 2 | . 2 . . . Fabricators . | . . . . . Repair Stations . | . . . . . Recycling Units . | . . . . . Scanalyzers . | . . . . . Garrison Access . | . . . . . Data Cores Recovered 1 | . 1 . . . Used 1 | . 1 . . . Hacking Detections 8 | . 7 1 . . Full Trace Events . | . . . . . Feedback Events . | . . . . . Feedback Blocked . | . . . . . Robot Schematics Acquired . | . . . . . Robots Built . | . . . . . Authchips . | . . . . . Time . | . . . . . Total Robot Build Rating . | . . . . . Part Schematics Acquired . | . . . . . Parts Built . | . . . . . Authchips . | . . . . . Time . | . . . . . Total Part Build Rating . | . . . . . Parts Repaired . | . . . . . Time . | . . . . . Parts Recycled . | . . . . . Recycled Matter . | . . . . . Retrieved Matter . | . . . . . Retrieved Components . | . . . . . Parts Scanalyzed . | . . . . . Part Schematics Acquired . | . . . . . Parts Damaged . | . . . . . Bothacking | -11 -10 -10 -10 -9 ------------ Run | Jun Mat Min Exi Min Used RIF Installer . | . . . . . Robots Hacked . | . . . . . Non-combat . | . . . . . Combat . | . . . . . Robot Hacks Applied . | . . . . . Relay Couplers Released . | . . . . . Fabnet Peak Effective % . | . . . . . Robots Rewired 3 | . . . 3 . Allies Hacked . | . . . . . Hacks Repelled . | . . . . . Allies | -11 -10 -10 -10 -9 -------- Run | Jun Mat Min Exi Min Total Allies 7 | . . 3 3 1 Largest Group 6 | . . 3 6 6 Highest-Rated Group 77 | . . 40 77 77 Highest-Rated Ally 31 | . . 16 21 31 Total Orders . | . . . . . Ally Attacks 44 | . . . . 44 Total Damage 399 | . . . . 399 Kills 7 | . . . . 7 Allies Corrupted . | . . . . . Allies Melted . | . . . . . Intel | -11 -10 -10 -10 -9 ------- Run | Jun Mat Min Exi Min Robot Analysis Total 2 | . 1 1 . . Derelict Logs Recovered 2 | . . 1 . 1 Drone Launches . | . . . . . Drone Recoveries . | . . . . . Exploration | -11 -10 -10 -10 -9 ------------- Run | Jun Mat Min Exi Min Turns Passed 4140 | 19 1725 961 836 599 Spaces Moved 2467 | 7 791 724 605 340 Core . | . . . . . Treads 24 | . 22 2 . . Legs . | . . . . . Wheels 2443 | 7 769 722 605 340 Hover . | . . . . . Flight . | . . . . . Fastest Speed 80 | 80 80 125 125 125 Average Speed 122 | 90 116 125 125 125 Slowest Speed 240 | 95 240 240 125 125 Overloaded Moves . | . . . . . Propulsion Burnouts . | . . . . . Robots Hopped . | . . . . . Cave-ins Triggered . | . . . . . Exploration Rate (%) 71 | 2 97 99 92 67 Regions Visited 4 Branch Regions 3 Pre-discovered Areas 4 | . . 2 1 1 Known Exits Taken . | . . . . . Unknown Exits Taken 4 | 1 1 1 1 . Scrap Searched 2 | . . 1 . 1 Spaces Dug 2 | . 1 . 1 . Terrain Destroyed 20 | . 1 . 1 18 Melee 2 | . 1 . 1 . Projectile 1 | . . . . 1 AOE 17 | . . . . 17 Terrain Rammed . | . . . . . Walls Destroyed . | . . . . . Machines Disabled . | . . . . . Actions | -11 -10 -10 -10 -9 --------- Run | Jun Mat Min Exi Min Total 3462 | 13 1538 761 661 489 Wait 841 | . 680 24 12 125 Move 2463 | 6 790 723 604 340 Hop . | . . . . . Pick Up 22 | . 14 1 5 2 Fast Attach 7 | 1 6 . . . Attach 1 | . . . . 1 Detach 2 | . 2 . . . Swap 29 | 2 14 4 2 7 Drop 15 | 1 6 1 5 2 Fire 50 | 3 23 7 7 10 Melee 16 | . 3 . 11 2 Ram . | . . . . . Kick . | . . . . . Crush 1 | . . 1 . . Escape Stasis . | . . . . . Rewire 15 | . . . 15 . Trap . | . . . . . Miscellaneous . | . . . . . Route ------- -11/Junkyard -10/Materials (discovered 5 exits: [*Mat x3] / *Min x2) -10/Mines (discovered 3 exits: [*Mat x2] / *Exi) -10/Exiles -9/Mines (discovered 1 exit: [*Mat]) History --------- Turn | Location | Event 13 | -11/Junkyard | Discovered new exit (range 3) 20 | -11/Junkyard | Entered Materials 109 | -10/Materials | Discovered new exit (range 8) 318 | -10/Materials | Build established: Mutant 650 | -10/Materials | Discovered new exit (range 6) 664 | -10/Materials | Central database locked down 1376 | -10/Materials | Discovered new exit (range 16) 1497 | -10/Materials | Discovered new exit (range 3) 1691 | -10/Materials | Discovered new exit (range 12) 1745 | -10/Materials | Entered Mines 1778 | -10/Mines | Deemed a non-threat by the Exiles lab entrance 1778 | -10/Mines | Discovered new exit (range 5) 2116 | -10/Mines | Learned location of Zion (-7) 2183 | -10/Mines | Discovered new exit (range 7) 2330 | -10/Mines | Discovered new exit (range 4) 2496 | -10/Mines | Assisted by bots powering up and referring to "LRC-V3" 2506 | -10/Mines | Learned location of Storage (-9) 2706 | -10/Mines | Entered Exiles 2706 | -10/Exiles | Found Exiles lab destroyed 2706 | -10/Exiles | Accompanied by 3 allies 3033 | -10/Exiles | Build established: Commander-Mutant 3512 | -10/Exiles | Discovered new exit (range 14) 3542 | -10/Exiles | Entered Mines 3542 | -9/Mines | Accompanied by 6 allies 3561 | -9/Mines | Met a Derelict bent on vengeance 3628 | -9/Mines | Received a Rocket Launcher from a helpful Derelict 3698 | -9/Mines | Met a Derelict who couldn't figure out how to use a Trap Extractor 3895 | -9/Mines | Build established: Mutant 3952 | -9/Mines | Found a hidden stash of uninstalled traps 3995 | -9/Mines | Met a Derelict testing a Signal Generator 4053 | -9/Mines | Discovered new exit (range 7) 4103 | -9/Mines | Assembled infested the area 4108 | -9/Mines | Assisted by a Guerilla fighting off Assembled 4136 | -9/Mines | Core integrity fell below 50% 4141 | -9/Mines | Self-destructed Last Messages --------------- 04120_ as-10242 destroyed. 04120_ as-73742 destroyed. 04120_ as-35413 destroyed. 04121_ The unstable cave ceiling collapses. 04122_ as-69915 destroyed. 04122_ as-95539 destroyed. 04123_ The unstable cave ceiling collapses. 04124_ as-38788 destroyed. 04125_ as-27175 destroyed. 04125_ D-53 Grenadier knocked back. 04126_ The unstable cave ceiling collapses. 04127_ as-25907 destroyed. 04127_ Integrated Corrupted Adv. Assault Cannon (+4). 04127_ Complication: Ion Engine rejected. 04127_ Complication: Core Shielding rejected. 04133_ The unstable cave ceiling collapses. 04138_ Lgt. Treads destroyed. 04139_ The unstable cave ceiling collapses. 04139_ Assault Rifle destroyed. 04141_ The unstable cave ceiling collapses. Map ----- +----------------------------------------------------+ | ???????????## ##??????????????# #??????## | | ????????????# ????????????????# #???????? | | ????????????## ????????????????# #???????? | | ?????????????## ????????????????# #???????? | | ??????????????## ????????????????#*#???????? | | ???????????????# ????????????????#*#???????? | | ??????????????? ????????????????#[#???????? | | ??????????????? ????????????????#%#???????? | | ???????????????? ?????????????????#=#???????? | | ??????????????????????????????????#*#???????? | | ??????????????????????????????????#!#???????? | | ??????????????????????????????????#%######### | | ??????????????????????????????????# | | ??????????????????????????????????########## | | ???????????????????????????????????????????# | | ???????????????????????????????????????????# | | ???????????????????????????????????????????# | | ???????????????????????????????????????????# | | ???????????????????????????????????????????# | | ???????????????????######?????????????######[ | | ?????????????????### # ##????????????#[ [ ! | | ????????????????## #????????????# ####% | | ???????????????## ##?????????### ####% | | ???????????????# #????????## " | | ???????????????# ##????????# ##### | | ???????????????# @ #????????# *##???? | | ???????????????# ##????????# <%##???? | | ???????????????# ;####????? %! ###? | | ???????????????## # ## ## | | ????????????????### # | | ?????????????????#### % | | ????????????????????? dd % % | | ????????????????????? | | ????????????????????# # % # # | | ???????????????????# # # | | ????????????????? # # ## # # | | ??????????????? # ####??## | | ?????????????? ##### #####???????# | | ????????????? ?????##???????????? | | ????????????? ??????????????????? # | | ?????????????? ## ???????????????????# # | | ?????????????? #?##????????????????????? ## | | ?????????????????????????????????????????###? | | ????????????????????????????????????????????? | | ????????????????????????????????????????????? | | ????????????????????????????????????????????? | | ????????????????????????????????????????????? | | ????????????????????????????????????????????? | | | | | +----------------------------------------------------+ Best States ------------- Heat Dissipation 25 Energy Generation 10 Energy Capacity 250 Matter Stores 300 Matter Capacity 300 Sight Range 16 Terrain Scan Density 10 Armor Coverage 150 Evasion (%) 44 Targeting Accuracy 5 Recoil Reduction 2 Item Schematics ----------------- None Robot Schematics ------------------ None Fabricated ------------ Nothing Alien Tech Used ----------------- None Achievements -------------- None Challenges ------------ None Game ------ Seed ForceBeamStreamer Manual? 0 Play Time 00:21:33 Cumulative 53.7 hours Start 2023.07.12 @ 19:54:21 End 2023.07.12 @ 20:19:00 Sessions 1 Manual Loads 0 Difficulty Rogue Special Mode None Game No. 49 Rogue 49 Adventurer 0 Explorer 0 Win Type - Total 1 Types 0/0/1/0/0/0/0/0/0 Lore% 33 Gallery% 36 Achievement% 52 Wizard Run 0 Options --------- ASCII 1 Keyboard 1 Movement Arrows Keybinds 0 Fullscreen 2 Font 24/Proggy Map View 76x50 Tactical HUD 1 Map Filters NONE Filters NONE Steam 1 RUN: 942bdba3-1c76-4f85-9937-81a3fe6a0a75